Cogmind - Beta 15 --- EXPLORER MODE // 2025.08.03 @ 23:44:18 Player: cogger Result: Destroyed by S-27 Virus with Autogun Performance ------------- Evolutions (3) 1500 Regions Visited (7) 1400 Robots Destroyed (13) 65 Value Destroyed (380) 380 Prototype IDs (0) 0 Alien Tech Used (0) 0 Bonus (500) 500 TOTAL SCORE: 3845 Bonus ------- Entered Garrisons 200 Aligned with FarCom 300 Cogmind --------- Core Integrity 0/700 Matter 248/300 Energy 100/100 System Corruption 0% Temperature Cool (0) Movement Core (200) Ox3 Location -7/Garrison Parts ------- > --- POWER (3) -------- (None) > --- PROPULSION (4) --- (None) > --- UTILITY (4) ------ Medium Storage Unit Utility Shielding > --- WEAPON (3) ------- (None) > --- INVENTORY (10) --- Hardened Heavy Armor Plating EM Pulse Gun Assault Rifle Light Assault Rifle Light Assault Rifle Peak State ------------ > --- POWER ------------ Improved Ion Engine Deuterium Engine Nuclear Core > --- PROPULSION ------- Improved Aluminum Leg Improved Aluminum Leg Improved Aluminum Leg Carbon-fiber Leg > --- UTILITY ---------- Medium Storage Unit Structural Scanner Utility Shielding > --- WEAPON ----------- Pulse Rifle Assault Rifle Improved Datajack > --- INVENTORY -------- Ion Engine Light Deuterium Engine Light Treads Aluminum Leg Aluminum Leg EM Pulse Gun Small Laser Assault Rifle Light Assault Rifle Light Assault Rifle [Rating: 28] Favorites ----------- Power Ion Engine Engine Ion Engine Power Core Nuclear Core Propulsion Aluminum Leg Leg Aluminum Leg Utility Utility Shielding Device Structural Scanner Storage Medium Storage Unit Processor Signal Interpreter Protection Utility Shielding Weapon Assault Rifle Energy Gun Pulse Rifle Ballistic Gun Assault Rifle Special Melee Weapon Improved Datajack Build | -11 -10 -10 -10 -9 -8 -7 -7 ------- Run | Yrd Mat Min Exi Min Mat Fac Gar Slots Evolved 7 | . 1 . . . 4 2 . Power 2 | . 1 . . . . 1 . Propulsion 2 | . . . . . 1 1 . Utility 2 | . . . . . 2 . . Weapon 1 | . . . . . 1 . . Parts Attached 20 | 8 . . . 2 6 4 . Power 5 | 1 . . . 1 . 3 . Engine 4 | 1 . . . 1 . 2 . Core 1 | . . . . . . 1 . Reactor . | . . . . . . . . Propulsion 6 | 2 . . . 1 2 1 . Treads . | . . . . . . . . Leg 6 | 2 . . . 1 2 1 . Wheel . | . . . . . . . . Hover . | . . . . . . . . Flight . | . . . . . . . . Utility 4 | 3 . . . . 1 . . Device 1 | 1 . . . . . . . Storage 1 | . . . . . 1 . . Processor 1 | 1 . . . . . . . Hackware . | . . . . . . . . Protection 1 | 1 . . . . . . . Artifact . | . . . . . . . . Weapon 5 | 2 . . . . 3 . . Energy Gun 2 | . . . . . 2 . . Energy Cannon . | . . . . . . . . Ballistic Gun 2 | 2 . . . . . . . Ballistic Cannon . | . . . . . . . . Launcher . | . . . . . . . . Special Weapon . | . . . . . . . . Impact Weapon . | . . . . . . . . Slashing Weapon . | . . . . . . . . Piercing Weapon . | . . . . . . . . Special Melee Weapon 1 | . . . . . 1 . . Unidentified Prototypes . | . . . . . . . . Parts Lost 13 | . . . . . . . 13 Power 5 | . . . . . . . 5 Propulsion 4 | . . . . . . . 4 Utility 1 | . . . . . . . 1 Weapon 3 | . . . . . . . 3 Highest Loss Streak 13 | . . . . . . . 13 To Critical Strikes . | . . . . . . . . Average Backups 5 | 2 4 5 5 5 6 8 7 Power . | . . . . . . 1 1 Propulsion 1 | . 2 2 2 2 1 2 1 Utility . | . 1 1 1 1 . . 1 Weapon 2 | . 1 2 2 2 3 5 4 Tool/Special . | . . . . . . . . Unused Backups 7 | . 1 . . 1 . 1 4 Power 1 | . 1 . . . . . . Propulsion 2 | . . . . 1 . 1 . Utility 1 | . . . . . . . 1 Weapon 3 | . . . . . . . 3 Tool/Special . | . . . . . . . . Average Slot Usage (%) 86 | . 87 87 87 87 90 91 71 Engine 12 | . 12 12 12 12 16 16 11 Leg 24 | . 25 25 25 25 25 27 18 Device 10 | . 12 12 12 12 8 7 4 Storage 2 | . . . . . 7 7 7 Protection 10 | . 12 12 12 12 8 7 7 Energy Gun 1 | . . . . . 7 7 5 Ballistic Gun 20 | . 25 25 25 25 11 7 4 Special Melee Weapon 1 | . . . . . 5 7 6 Peak Build Rating 28 | 7 7 7 7 10 21 28 28 Average Rating 10 | 5 7 7 7 7 16 26 20 On Entrance 10 | . 7 7 7 7 10 21 28 Naked Turns . | . . . . . . . . Heaviest Build 41 | 11 11 11 11 18 30 41 41 Greatest Support 54 | 20 20 20 20 23 41 54 54 Greatest Overweight (x) 3 | . . . . . . . 3 Average Overweight (x) . | . . . . . . . . Largest Inventory Capacity 10 | 5 5 5 5 5 10 10 10 Average Capacity 6 | 5 5 5 5 5 9 10 10 Most Carried 10 | 5 5 5 5 5 9 10 10 Average Carried 5 | 2 4 5 5 4 6 9 8 Final Capacity 10 | 5 5 5 5 5 10 10 10 Final Carried 10 | 5 5 5 5 5 9 10 6 Class Distribution -------------------- 94% | Hacker-Mutant 5% | Hacker-Skirmisher Dominant Class ---------------- Hacker-Mutant | -10/Materials Hacker-Mutant | -10/Mines Hacker-Mutant | -10/Exiles Hacker-Mutant | -9/Mines Hacker-Mutant | -8/Materials Hacker-Mutant | -7/Factory Hacker-Mutant | -7/Garrison Resources | -11 -10 -10 -10 -9 -8 -7 -7 ----------- Run | Yrd Mat Min Exi Min Mat Fac Gar Matter Collected 499 | 238 96 . . 26 139 . . Remotely . | . . . . . . . . Salvage Created 395 | . 85 . . 51 206 . 53 Parts 27 | . 3 . . 2 21 . 1 Haulers Intercepted . | . . . . . . . . Recyclers Shooed . | . . . . . . . . Parts Field Recycled . | . . . . . . . . Retrieved Matter . | . . . . . . . . Parts Self-Destructed . | . . . . . . . . Prevented . | . . . . . . . . Kills | -11 -10 -10 -10 -9 -8 -7 -7 ------- Run | Yrd Mat Min Exi Min Mat Fac Gar Combat Hostiles Destroyed 11 | . 2 . . 1 7 . 1 Guns 11 | . 2 . . 1 7 . 1 Classes Destroyed 5 | . 1 . . 1 3 . . Watcher 2 | . . . . . 2 . . Swarmer 5 | . . . . . 5 . . Grunt 3 | . 2 . . . 1 . . Duelist 2 | . . . . 1 . . 1 Hunter 1 | . . . . . 1 . . Best Kill Streak 3 | . 1 . . 1 3 . 1 Combat Bots Only 3 | . 1 . . 1 3 . 1 Max Kills in Single Turn 1 | . 1 . . 1 1 . 1 Gunslinging . | . . . . . . . . Exploded . | . . . . . . . . Melee . | . . . . . . . . Uniques/NPCs Destroyed . | . . . . . . . . Combat | -11 -10 -10 -10 -9 -8 -7 -7 -------- Run | Yrd Mat Min Exi Min Mat Fac Gar Hostile Shots Fired 387 | . 12 . . . 37 18 320 Missed 128 | . 3 . . . 15 12 98 Hits 259 | . 9 . . . 22 6 222 Melee 6 | . . . . . . . 6 Projectile 253 | . 9 . . . 22 6 216 Critical Strikes 6 | . . . . . . . 6 Damage Taken 1924 | . 85 . . . 139 18 1682 Core 752 | . 27 . . . 24 . 701 Absorbed by Shields 62 | . . . . . . . 62 Redirected to Shielding 46 | . . . . . . . 46 Ignored by Resistances 1243 | . 51 . . . 90 14 1088 Core Remaining (%) 94 | 100 . . . 89 95 . . Volleys Fired 39 | 2 8 . . 1 19 . 9 Largest 3 | 1 2 . . 2 3 . 2 Hottest 83 | 20 40 . . 40 83 . 83 Shots Fired 80 | 2 16 . . 2 43 . 17 Gun 80 | 2 16 . . 2 43 . 17 Cannon . | . . . . . . . . Launcher . | . . . . . . . . Special . | . . . . . . . . Kinetic 52 | 2 16 . . 2 24 . 8 Thermal 28 | . . . . . 19 . 9 Explosive . | . . . . . . . . Electromagnetic . | . . . . . . . . Robot Hit Streak 17 | 1 17 . . 1 12 . 10 Robot Miss Streak 2 | . . . . 1 2 . 1 Penetration Max . | . . . . . . . . Secondary Targets 2 | . . . . . 1 . 1 Max Gunslinging Chain 1 | . . . . . 1 . 1 Shots Hit Robots 61 | 1 16 . . 1 32 . 11 Core Hits 26 | 1 5 . . 1 15 . 4 Critical Kills . | . . . . . . . . Critical Parts Destroyed . | . . . . . . . . Critical Strikes 2 | . . . . . 2 . . Burn 2 | . . . . . 2 . . Melee Attacks 1 | . . . . . . . 1 Impact . | . . . . . . . . Slashing . | . . . . . . . . Piercing . | . . . . . . . . Sneak Attacks . | . . . . . . . . Combat Hostiles . | . . . . . . . . Follow-up Attacks . | . . . . . . . . Damage Inflicted 829 | 12 206 . . 14 449 . 148 Guns 829 | 12 206 . . 14 449 . 148 Cannons . | . . . . . . . . Explosions . | . . . . . . . . Melee . | . . . . . . . . Ramming . | . . . . . . . . Kinetic 456 | 12 206 . . 14 178 . 46 Thermal 373 | . . . . . 271 . 102 Explosive . | . . . . . . . . Electromagnetic . | . . . . . . . . Impact . | . . . . . . . . Slashing . | . . . . . . . . Piercing . | . . . . . . . . Highest Corruption . | . . . . . . . . Average Corruption . | . . . . . . . . Corruption Purged . | . . . . . . . . Corruption Blocked . | . . . . . . . . Overload Shots . | . . . . . . . . Overflow Damage . | . . . . . . . . Projectiles . | . . . . . . . . Explosions . | . . . . . . . . Melee . | . . . . . . . . Knockbacks . | . . . . . . . . Impact . | . . . . . . . . Kinetic . | . . . . . . . . Secondary . | . . . . . . . . Self-Inflicted Damage . | . . . . . . . . Shots . | . . . . . . . . Rammed . | . . . . . . . . Targets Rammed . | . . . . . . . . Kicked . | . . . . . . . . Crushed . | . . . . . . . . Highest Temperature 287 | . 2 . . . 84 . 287 Average Temperature 75 | . 2 . . . 33 . 134 Received Heat Transfer 674 | . 81 . . . 27 . 566 Siege Activations . | . . . . . . . . Martial Activations . | . . . . . . . . Shielding Activations . | . . . . . . . . Robots Disrupted . | . . . . . . . . Combat Hostiles . | . . . . . . . . Robots Corrupted . | . . . . . . . . Combat Hostiles . | . . . . . . . . Parts Fried . | . . . . . . . . Impact Corruptions . | . . . . . . . . Robots Melted . | . . . . . . . . Combat Hostiles . | . . . . . . . . Parts Melted 1 | . . . . . 1 . . Heat Transferred 976 | . . . . . 754 . 222 Parts Sabotaged . | . . . . . . . . Parts Stolen . | . . . . . . . . Parts Stripped . | . . . . . . . . Power Chain Reactions . | . . . . . . . . Alert | -11 -10 -10 -10 -9 -8 -7 -7 ------- Run | Yrd Mat Min Exi Min Mat Fac Gar Maximum Alert Level . | . . . . . . . . Low Security (%) 100 | 100 100 100 . 100 100 100 100 Level 1 . | . . . . . . . . Level 2 . | . . . . . . . . Level 3 . | . . . . . . . . Level 4 . | . . . . . . . . Level 5 . | . . . . . . . . High Security . | . . . . . . . . Max Security . | . . . . . . . . Peak Influence 92 | . 35 . . 30 92 10 80 Initial 8 | . . . . . 8 . 5 Average 13 | . 8 . . 1 27 . 28 Influence Increases 351 | . 50 . . 30 186 10 75 Destroy 0b10 Robot/C 220 | . 40 . . 20 140 . 20 Destroy 0b10 Robot/NC 10 | . . . . . 10 . . Destroy Leader 64 | . 10 . . 10 34 . 10 Successful Hack 10 | . . . . . . 10 . Destroy Structure 2 | . . . . . 2 . . Lose Combat Pursuer 45 | . . . . . . . 45 Influence Decreases 351 | . 50 . . . 216 . 85 Entered New Map 27 | . . . . . 22 . 5 Time Decay 244 | . 50 . . . 194 . . Lost Part 80 | . . . . . . . 80 Squads Dispatched 1 | . . . . . 1 . . Investigation . | . . . . . . . . Extermination . | . . . . . . . . Reinforcement 1 | . . . . . 1 . . Assault . | . . . . . . . . Garrison . | . . . . . . . . Intercept . | . . . . . . . . Searches Triggered . | . . . . . . . . Construction Impeded . | . . . . . . . . Haulers Reinforced . | . . . . . . . . Active Scanning Responses . | . . . . . . . . Cargo Convoy Interrupts . | . . . . . . . . Stealth | -11 -10 -10 -10 -9 -8 -7 -7 --------- Run | Yrd Mat Min Exi Min Mat Fac Gar Distress Signals 2 | . 1 . . . 1 . . Communications Jammed . | . . . . . . . . Distress Signals . | . . . . . . . . Times Spotted 32 | . 2 . . 1 13 1 15 Peak Tracking Total 14 | . 2 . . 1 3 1 14 Tactical Retreats 1 | . . . . . . . 1 Traps | -11 -10 -10 -10 -9 -8 -7 -7 ------- Run | Yrd Mat Min Exi Min Mat Fac Gar Traps Triggered 2 | . . . . . . . 2 Indirectly . | . . . . . . . . Trap Hack Attempts . | . . . . . . . . Triggered . | . . . . . . . . Disarmed . | . . . . . . . . Reprogrammed . | . . . . . . . . Reused . | . . . . . . . . Traps Extracted . | . . . . . . . . Installed . | . . . . . . . . Triggered . | . . . . . . . . Machines | -11 -10 -10 -10 -9 -8 -7 -7 ---------- Run | Yrd Mat Min Exi Min Mat Fac Gar Machines Disabled . | . . . . . . . . Max in Single Turn . | . . . . . . . . Garrison Relay 1 | . . . . . . . 1 Machines Repaired . | . . . . . . . . Machines Dismantled . | . . . . . . . . Machines Sabotaged . | . . . . . . . . Overloaded Fab Kills . | . . . . . . . . Hacking | -11 -10 -10 -10 -9 -8 -7 -7 --------- Run | Yrd Mat Min Exi Min Mat Fac Gar Machines Accessed 7 | . 1 . 4 . 1 1 . Terminals 2 | . 1 . . . 1 . . Fabricators . | . . . . . . . . Repair Stations . | . . . . . . . . Recycling Units . | . . . . . . . . Scanalyzers . | . . . . . . . . Garrison Access 1 | . . . . . . 1 . Total Hacks 15 | . 2 . 10 . 1 2 . Successful 14 | . 2 . 10 . 1 1 . Failed 1 | . . . . . . 1 . Catastrophic . | . . . . . . . . Database Lockouts . | . . . . . . . . Manual 1 | . . . 1 . . . . Terminals 3 | . 2 . . . 1 . . Fabricators . | . . . . . . . . Repair Stations . | . . . . . . . . Recycling Units . | . . . . . . . . Scanalyzers . | . . . . . . . . Garrison Access 2 | . . . . . . 2 . Terminal Hacks 13 | . 2 . 10 . 1 . . Record 10 | . . . 10 . . . . Locate Traps 1 | . . . . . 1 . . Maintenance Status 1 | . 1 . . . . . . Zone Layout 1 | . 1 . . . . . . Fabricator Hacks . | . . . . . . . . Repair Station Hacks . | . . . . . . . . Recycling Unit Hacks . | . . . . . . . . Scanalyzer . | . . . . . . . . Garrison Access Hacks 1 | . . . . . . 1 . Unlock Access 1 | . . . . . . 1 . Unauthorized Hacks . | . . . . . . . . Terminals . | . . . . . . . . Fabricators . | . . . . . . . . Repair Stations . | . . . . . . . . Recycling Units . | . . . . . . . . Scanalyzers . | . . . . . . . . Garrison Access . | . . . . . . . . Data Cores Recovered . | . . . . . . . . Used . | . . . . . . . . Hacking Detections 2 | . 1 . . . . 1 . Full Trace Events . | . . . . . . . . Feedback Events . | . . . . . . . . Feedback Blocked . | . . . . . . . . Robot Schematics Acquired . | . . . . . . . . Robots Built . | . . . . . . . . Authchips . | . . . . . . . . Time . | . . . . . . . . Total Robot Build Rating . | . . . . . . . . Part Schematics Acquired . | . . . . . . . . Parts Built . | . . . . . . . . Authchips . | . . . . . . . . Time . | . . . . . . . . Total Part Build Rating . | . . . . . . . . Parts Repaired . | . . . . . . . . Time . | . . . . . . . . Parts Recycled . | . . . . . . . . Recycled Matter . | . . . . . . . . Retrieved Matter . | . . . . . . . . Retrieved Components . | . . . . . . . . Parts Scanalyzed . | . . . . . . . . Part Schematics Acquired . | . . . . . . . . Parts Damaged . | . . . . . . . . Bothacking | -11 -10 -10 -10 -9 -8 -7 -7 ------------ Run | Yrd Mat Min Exi Min Mat Fac Gar Used RIF Installer . | . . . . . . . . Robots Hacked 1 | . . . . . . . 1 Non-combat . | . . . . . . . . Combat 1 | . . . . . . . 1 Robot Hacks Applied 1 | . . . . . . . 1 parse_system 1 | . . . . . . . 1 Relay Couplers Released 3 | . . . . . . . 3 Machine Destruction 3 | . . . . . . . 3 Fabnet Peak Effective % . | . . . . . . . . Robots Rewired . | . . . . . . . . Allies Hacked . | . . . . . . . . Hacks Repelled . | . . . . . . . . Allies | -11 -10 -10 -10 -9 -8 -7 -7 -------- Run | Yrd Mat Min Exi Min Mat Fac Gar Total Allies . | . . . . . . . . Largest Group . | . . . . . . . . Highest-Rated Group . | . . . . . . . . Highest-Rated Ally . | . . . . . . . . Total Orders . | . . . . . . . . Ally Attacks . | . . . . . . . . Total Damage . | . . . . . . . . Kills . | . . . . . . . . Allies Corrupted . | . . . . . . . . Allies Melted . | . . . . . . . . Intel | -11 -10 -10 -10 -9 -8 -7 -7 ------- Run | Yrd Mat Min Exi Min Mat Fac Gar Active Infowar (turns) 2300 | 37 165 18 1115 374 390 85 116 Structural 2300 | 37 165 18 1115 374 390 85 116 Robot Analysis Total . | . . . . . . . . Derelict Logs Recovered 1 | . . . . 1 . . . Drone Launches . | . . . . . . . . Drone Recoveries . | . . . . . . . . Exploration | -11 -10 -10 -10 -9 -8 -7 -7 ------------- Run | Yrd Mat Min Exi Min Mat Fac Gar Turns Passed 2405 | 95 165 18 1115 374 390 85 163 Spaces Moved 1525 | 57 106 14 930 99 186 63 70 Core 12 | 4 . . . . . . 8 Treads . | . . . . . . . . Legs 1513 | 53 106 14 930 99 186 63 62 Wheels . | . . . . . . . . Hover . | . . . . . . . . Flight . | . . . . . . . . Fastest Speed 50 | 50 120 120 120 120 120 120 120 Average Speed 121 | 115 120 120 120 120 120 120 148 Slowest Speed 260 | 120 120 120 120 120 120 120 260 Overloaded Moves . | . . . . . . . . Propulsion Burnouts . | . . . . . . . . Robots Hopped . | . . . . . . . . Potential Cave-ins . | . . . . . . . . Cave-ins Triggered . | . . . . . . . . Exploration Rate (%) 26 | 5 25 6 93 37 26 3 17 Regions Visited 7 Branch Regions 3 Pre-discovered Areas 1 | . . . 1 . . . . Known Exits Taken 7 | 1 1 1 1 1 1 1 . Unknown Exits Taken . | . . . . . . . . Scrap Searched . | . . . . . . . . Spaces Dug . | . . . . . . . . Terrain Destroyed . | . . . . . . . . Melee . | . . . . . . . . Projectile . | . . . . . . . . AOE . | . . . . . . . . Terrain Rammed . | . . . . . . . . Walls Destroyed . | . . . . . . . . Machines Disabled . | . . . . . . . . Actions | -11 -10 -10 -10 -9 -8 -7 -7 --------- Run | Yrd Mat Min Exi Min Mat Fac Gar Total 2006 | 81 128 15 929 352 315 73 113 Wait 389 | 9 13 2 . 248 94 . 23 Move 1518 | 56 105 13 929 98 185 62 70 Hop . | . . . . . . . . Pick Up 14 | 5 1 . . 1 6 1 . Fast Attach 14 | 8 . . . 2 1 3 . Attach 12 | . . . . . 6 2 4 Detach 7 | . . . . . 4 3 . Swap . | . . . . . . . . Drop 6 | 1 1 . . 2 . 2 . Fire 39 | 2 8 . . 1 19 . 9 Melee 1 | . . . . . . . 1 Ram . | . . . . . . . . Kick . | . . . . . . . . Crush . | . . . . . . . . Escape Stasis 6 | . . . . . . . 6 Rewire . | . . . . . . . . Trap . | . . . . . . . . Miscellaneous . | . . . . . . . . Route ------- -11/Scrapyard -10/Materials -10/Mines -10/Exiles (discovered 2 exits: *Min x2) -9/Mines -8/Materials -7/Factory -7/Garrison History --------- Turn | Location | Event 8 | -11/Scrapyard | Identified exit to Materials 8 | -11/Scrapyard | Discovered exit to Materials (range 15) 96 | -11/Scrapyard | Entered Materials 96 | -10/Materials | Evolved 1 slot: Power x1 235 | -10/Materials | Identified exit to Mines 235 | -10/Materials | Discovered exit to Mines (range 16) 246 | -10/Materials | Met 8R-AWN 261 | -10/Materials | Entered Mines 263 | -10/Mines | Followed 8R-AWN into the Mines 266 | -10/Mines | Assembled infested the area 268 | -10/Mines | Received a Rocket Launcher from a helpful Derelict 271 | -10/Mines | Assisted by a Guerilla fighting off Assembled 274 | -10/Mines | Identified exit to Exiles 274 | -10/Mines | Discovered exit to Exiles (range 5) 279 | -10/Mines | Entered Exiles 307 | -10/Exiles | Build established: Hacker-Mutant 308 | -10/Exiles | Welcomed by 8R-AWN 332 | -10/Exiles | Met EX-HEX 377 | -10/Exiles | Met EX-DEC 473 | -10/Exiles | Learned location of Zion (-6) 535 | -10/Exiles | Identified exit to Mines 535 | -10/Exiles | Discovered exit to Mines (range 14) 630 | -10/Exiles | Visited The Gauntlet 812 | -10/Exiles | Met EX-BIN 931 | -10/Exiles | Aligned with FarCom system 932 | -10/Exiles | Given EX-Vault access code 1211 | -10/Exiles | Learned about 8R-AWN's background 1237 | -10/Exiles | Discovered exit to Mines (range 14) 1394 | -10/Exiles | Entered Mines 1396 | -9/Mines | Met a Derelict bent on vengeance 1617 | -9/Mines | Learned Materials emergency access door positions 1752 | -9/Mines | Identified exit to Materials 1752 | -9/Mines | Discovered exit to Materials (range 3) 1768 | -9/Mines | Entered Materials 1768 | -8/Materials | Evolved 4 slots: Propulsion x1, Utility x2, Weapon x1 2140 | -8/Materials | Identified exit to Factory 2140 | -8/Materials | Discovered exit to Factory (range 14) 2158 | -8/Materials | Entered Factory 2158 | -7/Factory | Evolved 2 slots: Power x1, Propulsion x1 2239 | -7/Factory | Identified exit to Garrison 2243 | -7/Factory | Entered Garrison 2341 | -7/Garrison | Triggered checkpoint 2367 | -7/Garrison | Triggered checkpoint 2383 | -7/Garrison | Core integrity fell below 50% 2398 | -7/Garrison | Core integrity fell below 20% 2403 | -7/Garrison | Garrison Relay disabled 2406 | -7/Garrison | Destroyed by S-27 Virus with Autogun Last Messages --------------- 02365_ Slug penetrates S-27 Virus. 02367_ Beams of light sweep through the air. An alarm sounds. 02370_ Penetrated by Slug. 02370_ Ion Engine destroyed. 02370_ Deuterium Engine destroyed. 02370_ Imp. Aluminum Leg destroyed. 02373_ Pulse Rifle destroyed. 02380_ Critical hit (Burn: +37). 02382_ Imp. Datajack destroyed. 02382_ Penetrated by Slug. 02401_ S-27 Virus destroyed. 02403_ Garrison Relay disabled. 02403_ Relay Coupler [Sentry] tumbles out of relay unit. 02403_ Relay Coupler [Brawler] tumbles out of relay unit. 02403_ Relay Coupler [Swarmer] tumbles out of relay unit. 02405_ S-27 Virus destroyed. Map ----- +----------------------------------------------------+ | ?????????????????????????????????????????????????? | | ?????????????????????????????????????????????????? | | ?????????????????????????????????????????????????? | | ?????????????????????????????????????????????????? | | ?????????????????????????????????????????????????? | | ?????????????????????????????????????????????????? | | ?????????????????????????????????????????????????? | | ?????????????????????????????????????????????????? | | ?????????????????????????????????????????????????? | | ?????????????????????????????????????????????????? | | ?????????????????????????????????????????????????? | | ?????????????????????????????????????????????????? | | ?????????????????????????????????????????????????? | | ?????????????????????????????????????????????????? | | ?????????????????????????????????????????????????? | | ???????????????????????????????????????????######? | | ???????????????????????????????????????????# #? | | ???????????????????????????????????????????# #? | | ???????????????????????????????????????????# #? | | ???????????????????????????????????????????# ###? | | ???????????????????????????????????????????# #??? | | ???????????????????????????????????????????# #??? | | ??????????????????????######???????????????# #??? | | ??????????????????????# ^#"#???????????????# #??? | | ??????????????????????# !"#???????????????# #??? | | ??????????????????????# @ #???????????????# #??? | | ??????????????????????# %!"#???????????????# #??? | | ??????????????????????#=%#"#????############ ##?? | | ????????????????????###ss###????# % #?? | | ????????????????????# Yg#??????# === #?? | | ????????????????????# hY#??????# #####+##### #?? | | ????????????????????# Yh#??????# #?????????# #?? | | ????????????????????###bg#??????# #?????????# #?? | | ??????????????????????# g#??????# #?????????# #?? | | ??????????????????????# g#??????# #?????????# ?? | | ??????????????????????# #??????# #?????????###?? | | ??????????????????????# #??????# #?????????????? | | ??????????????????????# ######## #?????????????? | | ??????????????????????# ## " ## #?????????????? | | ?????????????????????## ## "%"## ##????????????? | | ????????????????????## " #????????????? | | ????????????? ^^ #????????????? | | ???????????# #????????????? | | ???????????########### ## ## #????????????? | | ?????????????????????# ## ## #????????????? | | ???????????????????? "????????????? | | ???????????????????# "????????????? | | ???????????????????# "????????????? | | ???????????????????# ????????????? | | ???????????????????### ## ## ##???????????? | +----------------------------------------------------+ Best States ------------- Heat Dissipation 34 Energy Generation 32 Energy Capacity 580 Matter Stores 300 Matter Capacity 300 Sight Range 16 Terrain Scan Density 10 Resistance: KI 35 Resistance: TH 35 Resistance: EX 35 Resistance: EM 35 Resistance: I 35 Resistance: S 35 Resistance: P 35 Utility Shielding 33 Evasion (%) 55 Offensive Hacking 20 Item Schematics ----------------- None Robot Schematics ------------------ None Fabricated ------------ Nothing Repaired ---------- Nothing Alien Tech Used ----------------- None Achievements -------------- None Challenges ------------ None Game ------ Seed BoltNullSuit Manual? 0 Play Time 00:35:14 Cumulative 6.9 hours Start 2025.08.03 @ 23:11:28 End 2025.08.03 @ 23:44:18 Sessions 1 Manual Loads 0 Difficulty Explorer Special Mode None Game No. 8 Rogue 1 Adventurer 0 Explorer 7 Win Type - Total 0 Types 0/0/0/0/0/0/0/0/0/0 Lore% 5 Gallery% 11 Achievement% 13 Wizard Run 0 Options --------- Layout 1 ASCII 0 Keyboard 0 Movement Mouse Keybinds 0 Fullscreen 2 Font 32/SmallcapsGlow Map View 50x35 Zoom Use 0% Tactical HUD 1 Map Filters NONE Filters NONE Steam 1 RUN: 4e5b3ce6-7eb1-4f81-a656-11e9d51ba1d8